bitfinex/quotes_ETHUSD_20220112
["timestamp","ask_amount","ask_price","bid_price","bid_amount"]
[1642017107277,0.00170527,3381.1,3380.6,0.21939424]
[1642017107680,0.00113684,3381.0,3380.6,0.21939424]
[1642017108783,0.00113684,3381.0,3380.6,0.15569684]
[1642017109783,0.00113684,3381.0,3380.7,0.8871122]
[1642017109984,0.00113684,3381.0,3380.7,1.21835507]
[1642017110184,0.00113684,3381.0,3380.7,0.47909507]
[1642017110389,0.00113684,3381.0,3380.7,0.4478522]
[1642017110819,0.00113684,3381.0,3380.7,1.22137928]
[1642017111025,0.00113684,3381.0,3380.8,0.1183]
[1642017114596,0.00113684,3381.0,3380.9,5.625]
[1642017114795,0.00113684,3381.0,3380.9,8.5140507]
[1642017115094,0.00113684,3381.0,3380.9,8.8140507]
[1642017115495,0.00113684,3381.0,3380.9,8.59499183]
[1642017115698,0.00113684,3381.0,3380.9,0.7579459]
[1642017117000,0.00113684,3381.0,3380.9,0.3]
[1642017117395,0.00113684,3381.0,3380.7,0.4478522]
[1642017117595,0.00113684,3381.0,3380.7,0.3]
[1642017119638,0.00113684,3381.0,3380.2,0.03904356]
[1642017119842,0.00113684,3381.0,3379.7,3.1641]
[1642017119843,0.0095798,3380.9,3379.8,0.1183]
[1642017120035,0.0095798,3380.9,3379.5,8.576]
[1642017120036,0.0121436,3380.6,3380.3,0.00284212]
[1642017120235,0.1183,3380.5,3380.3,0.00284212]
[1642017120432,0.1183,3380.5,3379.9,1.13300655]
[1642017120632,0.30113684,3381.0,3379.9,1.13300655]
[1642017120633,0.1183,3380.9,3379.9,1.13300655]
[1642017120837,0.1183,3380.9,3380.0,0.00454739]
[1642017121633,0.1183,3380.9,3380.0,0.15243689]
[1642017121634,0.33807281,3380.4,3380.0,0.15243689]
[1642017121878,0.33807281,3380.4,3380.0,0.92535304]
[1642017122075,0.33807281,3380.4,3380.1,0.00397897]
[1642017122674,0.33807281,3380.8,3380.1,0.00397897]
[1642017123681,0.33807281,3380.9,3380.0,0.30454739]
[1642017123977,0.73953,3380.7,3380.1,0.00397897]
[1642017124176,1.47906,3380.7,3380.1,0.00397897]
[1642017124780,1.47906,3380.7,3380.0,0.00454739]
[1642017124982,0.73953,3380.7,3380.0,0.00454739]
[1642017125179,1.07755281,3380.9,3380.0,0.00454739]
[1642017126328,2.63797684,3381.0,3380.0,0.00454739]
[1642017126329,0.73954,3380.6,3380.0,0.00454739]
[1642017126729,3.29628281,3380.8,3380.0,0.00454739]
[1642017126730,0.3,3380.5,3380.0,0.00454739]
[1642017126931,0.43075393,3380.5,3379.8,0.00568424]
[1642017127129,0.43075393,3380.5,3378.9,0.13819997]
[1642017127130,0.43075393,3380.5,3379.6,0.00682108]
[1642017127330,0.73967,3380.1,3379.6,0.00682108]
[1642017127531,1.76255129,3380.0,3379.0,1.37232279]
[1642017127731,2.91670576,3380.0,3379.0,1.40812069]
[1642017127931,2.91670576,3380.0,3379.3,0.1479223]
[1642017128132,2.79840576,3380.0,3379.4,0.1183]
[1642017128331,2.79840576,3380.0,3379.4,0.12625793]
[1642017128533,0.73967,3380.1,3379.5,0.00738951]
[1642017128740,0.73955,3380.3,3379.6,0.1183]
[1642017128933,0.33807281,3379.9,3379.6,0.1183]
[1642017129133,0.33807281,3379.9,3379.7,0.00625266]
[1642017129579,0.33807281,3379.9,3379.8,0.1478998]
[1642017129979,1.49988886,3380.4,3379.8,0.15358404]
[1642017130180,1.49988886,3380.4,3379.8,0.00568424]
[1642017130380,1.49988886,3380.4,3379.9,0.00511581]
[1642017130579,1.49988886,3380.4,3379.8,0.00568424]
[1642017131387,1.49988886,3380.3,3379.8,0.00568424]
[1642017131581,0.73959,3380.2,3379.8,0.00568424]
[1642017131782,0.73959,3380.2,3379.8,0.30568424]
[1642017131982,1.49988886,3380.3,3379.8,0.00568424]
[1642017132182,1.49988886,3380.3,3379.9,0.00511581]
[1642017132383,1.49988886,3380.3,3379.8,0.3]
[1642017132384,1.49988886,3380.3,3379.7,0.00625266]
[1642017132583,1.49988886,3380.3,3379.9,0.00511581]
[1642017132783,1.49988886,3380.3,3379.7,0.00625266]
[1642017133232,1.49988886,3380.2,3379.7,0.00625266]
[1642017134235,1.49988886,3380.2,3379.7,1.48515266]
[1642017134436,1.49988886,3380.2,3379.7,1.52471963]
[1642017134637,1.49988886,3380.2,3379.8,0.00568424]
[1642017135640,1.49988886,3380.3,3379.8,0.30568424]
[1642017135841,1.49988886,3380.3,3379.7,0.00625266]
[1642017136041,1.49988886,3380.3,3379.9,0.00511581]
[1642017136241,1.290234,3380.2,3379.7,0.00625266]
[1642017136441,2.029834,3380.2,3379.5,0.00738951]
[1642017136646,0.73965,3380.1,3379.6,0.1183]
[1642017136880,1.49988886,3380.0,3379.6,0.1183]
[1642017137078,1.49988886,3380.0,3379.7,0.00625266]
[1642017137684,1.49988886,3380.0,3379.5,0.00738951]
[1642017137884,1.49988886,3380.0,3379.6,0.1183]
[1642017138284,1.49988886,3380.0,3379.8,0.73951]
[1642017138485,1.49988886,3380.0,3379.8,0.88996388]
[1642017138684,2.24976937,3380.2,3379.9,0.00511581]
[1642017139383,2.24976937,3380.2,3380.0,0.73946]
[1642017139588,2.24976937,3380.2,3380.1,7.54560582]
[1642017139786,2.24976937,3380.2,3380.1,2.63475918]
[1642017139983,0.33807281,3380.4,3380.1,0.03915336]
[1642017140184,0.33807281,3380.4,3380.1,2.70828939]
[1642017140384,0.33807281,3380.4,3380.2,0.00341054]
[1642017140635,0.33807281,3380.4,3380.3,0.73937]
[1642017140831,0.33807281,3380.4,3380.3,0.77143627]
[1642017141029,0.33807281,3380.4,3380.3,1.07143627]
[1642017141631,0.33807281,3380.4,3380.3,0.33206627]
[1642017141833,0.33807281,3380.4,3380.3,0.3]
[1642017142832,0.33807281,3380.4,3380.2,0.30341054]
[1642017143031,0.33807281,3380.4,3380.2,0.00341054]
[1642017144134,0.33807281,3380.4,3380.2,0.15129404]
[1642017145272,0.33807281,3380.4,3380.2,0.00341054]
[1642017146374,2.83784218,3380.5,3380.2,0.00341054]
[1642017146981,2.83784218,3380.5,3380.2,3.41203468]
[1642017147179,0.33807281,3380.4,3380.2,3.41203468]
[1642017147378,0.33807281,3380.4,3380.2,0.78042699]
[1642017148325,0.33807281,3380.4,3380.3,2.64204954]
[1642017148525,0.33807281,3380.4,3380.3,0.33413782]
[1642017148725,0.33807281,3380.4,3380.3,0.3]
[1642017149130,0.33807281,3380.4,3380.3,9.02263327]
[1642017149329,0.33807281,3380.4,3380.3,8.64572772]
[1642017151629,0.33807281,3380.4,3380.3,5.10582935]
[1642017151872,0.33807281,3380.4,3380.3,2.42696914]
[1642017153078,0.33807281,3380.4,3380.3,5.03371875]
[1642017153278,0.33807281,3380.4,3380.3,2.42696914]
[1642017153679,0.33807281,3380.4,3380.3,1.30866914]
[1642017153882,0.33807281,3380.4,3380.3,0.3]
[1642017154582,1.8093363,3380.4,3380.3,0.3]
[1642017154779,0.33807281,3380.4,3380.3,0.3]
[1642017162782,0.33807281,3380.4,3380.3,0.4478771]
[1642017163426,0.33807281,3380.4,3380.3,0.3]
[1642017163627,0.33807281,3380.4,3380.2,0.30341054]
[1642017163827,1.7335779,3380.5,3380.2,0.15129624]
[1642017164030,1.7335779,3380.5,3380.3,0.3]
[1642017164230,1.7335779,3380.5,3380.2,0.00341054]
[1642017164430,1.7335779,3380.5,3380.4,0.0022737]
[1642017164636,1.7335779,3380.5,3380.4,0.7722892]
[1642017164833,2.91319792,3380.5,3380.4,1.0745629]
[1642017165935,1.39550509,3380.5,3380.4,1.0745629]
[1642017166532,0.25,3380.5,3380.4,1.0745629]
[1642017175687,1.76769283,3380.5,3380.4,1.0745629]
[1642017178236,0.25,3380.5,3380.4,1.0745629]
[1642017180145,0.6572571,3380.5,3380.4,0.0352029]
[1642017180346,0.6572571,3380.5,3380.4,0.0022737]
[1642017180741,6.51769283,3380.5,3380.4,0.0022737]
[1642017181341,7.65036132,3380.5,3380.4,0.0022737]
[1642017181544,1.88599283,3380.5,3380.4,0.0022737]
[1642017181741,0.3683,3380.5,3380.4,0.0022737]
[1642017181977,3.02532647,3380.5,3380.4,0.0022737]
[1642017183177,2.29611019,3380.5,3380.4,0.0022737]
[1642017185653,2.17781019,3380.5,3380.4,0.0022737]
[1642017187141,0.6572571,3380.5,3380.4,0.0022737]
[1642017188642,2.00429652,3380.5,3380.4,0.0022737]
[1642017191988,2.30429652,3380.5,3380.4,0.0022737]
[1642017192384,2.00429652,3380.5,3380.4,0.0022737]
[1642017192585,4.25406589,3380.5,3380.1,0.00397897]
[1642017192784,4.25406589,3380.5,3379.8,0.12398424]
[1642017192987,4.25406589,3380.5,3380.2,1.51376431]
[1642017193245,2.00429652,3380.5,3380.2,1.51376431]
[1642017193448,2.00429652,3380.5,3380.2,1.81376431]
[1642017193645,2.00429652,3380.5,3380.2,0.33499431]
[1642017194648,0.4072571,3380.4,3380.3,0.1478684]
[1642017198279,0.4072571,3380.4,3380.3,2.29207389]
[1642017198478,0.4072571,3380.4,3380.3,2.32533358]
[1642017199480,0.4072571,3380.4,3380.3,0.2661684]
[1642017200639,0.4072571,3380.4,3380.3,2.9661684]
[1642017200839,0.4072571,3380.4,3380.3,2.99764946]
[1642017201457,0.4072571,3380.4,3380.3,2.87934946]
[1642017201643,0.4072571,3380.4,3380.1,0.56104586]
[1642017201841,0.4072571,3380.4,3380.2,0.1183]
[1642017202041,0.4072571,3380.4,3380.2,0.12171054]
[1642017203044,0.4072571,3380.4,3380.3,0.1478684]
[1642017203543,1.92931373,3380.4,3380.3,0.1478684]
[1642017204877,0.4072571,3380.4,3380.3,0.1478684]
[1642017205378,0.4072571,3380.4,3380.3,4.4504102]
[1642017205779,0.4072571,3380.4,3380.3,5.4504102]
[1642017207176,0.4072571,3380.4,3380.3,8.15343059]
[1642017207580,0.4072571,3380.4,3380.3,10.14092694]
[1642017210958,2.66135663,3381.2,3381.1,6.32511649]
[1642017210959,1.52205663,3381.2,3381.1,6.32511649]
[1642017211154,1.52205663,3381.2,3381.1,7.98161082]
[1642017211355,1.52205663,3381.2,3381.1,9.28161082]
[1642017211558,0.1183,3381.4,3381.1,10.97723494]
[1642017211756,2.81386682,3381.5,3381.4,5.85]
[1642017211985,3.0202299,3381.8,3381.4,5.85]
[1642017211986,3.0202299,3381.8,3381.4,5.88788703]
[1642017212185,3.0202299,3381.8,3381.5,1.0]
[1642017212387,1.0170874,3382.7,3381.7,6.7]
[1642017212691,1.0170874,3382.7,3382.2,1.46631295]
[1642017212892,1.0170874,3382.7,3382.3,0.5432]
[1642017213186,1.0170874,3382.7,3382.3,1.58308538]
[1642017213388,0.9170874,3382.7,3382.4,0.77095183]
[1642017213691,11.07741078,3383.7,3382.7,8.21745063]
[1642017213692,5.06205828,3383.5,3382.7,8.21745063]
[1642017213890,5.06205828,3383.5,3382.8,0.8432]
[1642017214091,5.06205828,3383.5,3382.8,1.88095017]
[1642017214286,5.06205828,3383.5,3382.8,2.19045017]
[1642017214590,6.30272372,3384.0,3382.8,2.19045017]
[1642017214591,6.30272372,3384.0,3383.5,0.73854]
[1642017214788,6.30272372,3384.0,3383.6,0.425]
[1642017214987,6.30272372,3384.0,3383.7,0.247]
[1642017215193,6.30272372,3384.0,3383.6,0.33473212]
[1642017215389,6.30272372,3384.0,3383.6,0.3]
[1642017215646,6.30272372,3384.0,3383.4,0.75875666]
[1642017215841,6.30272372,3384.0,3383.7,1.5112389]
[1642017216140,2.76010187,3384.4,3383.7,1.8112389]
[1642017216341,3.01900551,3384.7,3383.7,1.8112389]
[1642017216542,1.24028036,3384.2,3383.7,1.8112389]
[1642017216747,1.19028036,3384.2,3383.7,0.3]
[1642017216942,1.19028036,3384.2,3383.4,0.425]
[1642017216943,0.01364216,3384.1,3383.6,1.47723]
[1642017217143,2.80813014,3384.1,3383.6,1.80737577]
[1642017217346,2.80813014,3384.1,3383.6,0.03014577]
[1642017217347,0.01307374,3384.0,3383.6,0.03014577]
[1642017217544,0.85706,3383.9,3382.7,0.03357218]
[1642017217745,0.7389,3383.6,3382.5,0.13819997]
[1642017217946,3.5466019,3383.8,3382.5,0.13819997]
[1642017217947,1.43697877,3383.2,3382.8,0.73886]
[1642017218146,0.01023162,3383.5,3382.8,0.73886]
[1642017218346,0.00795793,3383.1,3382.8,0.77308051]
[1642017218546,0.0096632,3383.4,3382.8,0.77308051]
[1642017218749,0.0073895,3383.0,3382.8,0.77308051]
[1642017218947,0.00909477,3383.3,3382.8,1.07308051]
[1642017219147,0.00682108,3382.9,3382.8,1.07308051]
[1642017219386,0.00852635,3383.2,3382.8,1.07308051]
[1642017219588,1.52591785,3383.3,3382.8,1.07308051]
[1642017219589,0.00682108,3382.9,3382.8,1.07308051]
[1642017219790,0.00795793,3383.1,3382.8,1.07308051]
[1642017219988,0.00682108,3382.9,3382.8,1.07308051]
[1642017220190,0.0073895,3383.0,3382.8,1.07308051]
[1642017220390,0.00682108,3382.9,3382.8,1.07308051]
[1642017221291,0.00682108,3382.9,3382.8,4.17308051]
[1642017221494,0.00682108,3382.9,3382.8,0.03422051]
[1642017221695,0.00682108,3382.9,3382.6,0.1182]
[1642017222092,0.00625266,3382.8,3382.6,0.1182]
[1642017222292,0.00625266,3382.8,3382.3,1.51629642]
[1642017222493,1.31572331,3382.7,3382.3,1.51629642]
[1642017222693,1.31572331,3382.7,3382.5,0.73885]
[1642017222694,0.00568423,3382.7,3382.5,0.73885]
[1642017222896,0.3,3383.3,3382.5,0.77606265]
[1642017222897,0.00511581,3382.6,3382.5,0.77606265]
[1642017223181,0.00511581,3382.6,3382.5,7.27606265]
[1642017223566,0.00511581,3382.6,3382.5,8.27606265]
[1642017223768,0.00511581,3382.6,3382.5,2.07606265]
[1642017224172,0.00511581,3382.6,3382.5,5.12606265]
[1642017224373,0.00511581,3382.6,3382.5,1.07606265]
[1642017224579,0.00511581,3382.6,3382.5,0.33721265]
[1642017224873,0.00511581,3382.6,3382.3,0.3]
[1642017225275,0.00454739,3382.5,3382.2,0.3308826]
[1642017225474,0.00454739,3382.5,3382.3,0.1182]
[1642017225673,1.18426124,3383.1,3382.1,0.03531042]
[1642017225674,0.00397896,3382.4,3382.2,0.3]
[1642017225974,1.18426124,3383.1,3382.2,0.3]
[1642017225975,1.18426124,3383.1,3382.3,8.75635651]
[1642017226176,4.68057747,3383.7,3382.3,8.75635651]
[1642017226177,4.68057747,3383.7,3382.4,1.0]
[1642017226474,0.0073895,3383.0,3382.7,0.77750346]
[1642017226673,0.0073895,3383.0,3382.7,1.07750346]
[1642017226878,0.00682108,3382.9,3382.7,1.07750346]
[1642017227279,0.00625266,3382.8,3382.7,1.07750346]
[1642017228283,0.00625266,3382.8,3382.7,9.09684278]
[1642017228482,0.00625266,3382.8,3382.7,9.21504278]
[1642017230751,0.00625266,3382.8,3382.7,6.49570346]
[1642017230950,0.00625266,3382.8,3382.7,1.19570346]
[1642017231155,0.00625266,3382.8,3382.7,4.49570346]
[1642017232359,0.00625266,3382.8,3382.7,4.38270346]
[1642017232556,0.00625266,3382.8,3382.7,1.08270346]
[1642017232957,1.32137284,3382.8,3382.7,0.3052]
[1642017233558,1.32137284,3382.8,3382.7,0.0052]
[1642017235491,1.14937574,3382.3,3382.1,0.0052]
[1642017235791,0.00284212,3382.2,3382.1,0.0052]
[1642017236190,0.00284212,3382.2,3382.1,3.08670129]
[1642017236591,0.00284212,3382.2,3382.1,0.03670129]
[1642017236792,0.00284212,3382.2,3382.1,0.0052]
[1642017236991,0.12104212,3382.2,3382.1,0.0052]
[1642017238434,0.12104212,3382.2,3382.0,0.0052]
[1642017238635,0.00284212,3382.2,3382.0,0.0052]
[1642017238836,0.00227369,3382.1,3382.0,0.0052]
[1642017239038,0.00227369,3382.1,3382.0,6.7052]
[1642017239237,0.00227369,3382.1,3382.0,6.85655578]
[1642017240140,0.00227369,3382.1,3382.0,9.62249342]
[1642017240539,0.00227369,3382.1,3382.0,10.62249342]
[1642017240737,0.00227369,3382.1,3382.0,11.10389187]
[1642017241139,0.1182,3383.1,3382.3,0.73883]
[1642017241340,8.1661,3383.7,3382.9,0.73881]
[1642017241341,0.1182,3383.6,3382.9,0.73881]
[1642017241542,3.8234,3383.7,3383.0,0.02325508]
[1642017241738,2.03585059,3384.0,3382.9,1.59868459]
[1642017241999,0.00852635,3383.6,3382.9,1.59868459]
[1642017242395,1.15661817,3383.5,3382.9,1.59868459]
[1642017242598,0.3,3383.4,3382.9,1.59868459]
[1642017242799,0.00738951,3383.4,3383.1,0.7388]
[1642017242998,0.00682108,3383.3,3383.1,1.07401107]
[1642017243399,0.00625266,3383.2,3383.1,1.07401107]
[1642017243601,0.00625266,3383.2,3382.8,1.47762]
[1642017243602,0.00625266,3383.2,3382.8,0.03088964]
[1642017243802,0.00625266,3383.2,3382.4,0.0052]
[1642017244001,0.12388424,3383.1,3382.4,0.0052]
[1642017244198,0.00568424,3383.1,3382.4,0.0052]
[1642017244399,0.12331581,3383.0,3382.4,0.0052]
[1642017244599,1.17304259,3382.5,3382.3,0.0052]
[1642017244803,1.12304259,3382.5,3382.3,0.0052]
[1642017245100,0.00170527,3382.4,3382.3,0.0052]
[1642017245942,0.00170527,3382.4,3382.3,2.8552]
[1642017246143,0.00170527,3382.4,3382.3,2.88698043]
[1642017246944,0.00170527,3382.4,3382.3,5.73698043]
[1642017247346,0.00170527,3382.4,3382.3,8.52235293]
[1642017248853,0.00170527,3382.4,3382.3,2.88698043]
[1642017249052,0.00170527,3382.4,3382.3,0.0052]
[1642017249929,0.00170527,3382.4,3382.3,0.1234]
[1642017252130,2.77803837,3382.4,3382.3,0.0052]
[1642017252928,2.77803837,3382.4,3382.1,0.0052]
[1642017252929,0.73924,3382.3,3382.1,0.0052]
[1642017253133,6.21426491,3382.2,3382.1,0.0052]
[1642017253341,6.39606491,3382.2,3382.1,0.0052]
[1642017254343,3.09606491,3382.2,3382.1,0.0052]
[1642017254543,0.3,3382.2,3382.1,0.0052]
[1642017254743,3.01584514,3382.2,3382.1,0.0052]
[1642017254945,2.71584514,3382.2,3382.1,0.0052]
[1642017255946,1.12297116,3381.5,3381.4,0.0052]
[1642017256344,1.12297116,3381.5,3381.4,0.01088423]
[1642017256984,1.12297116,3381.5,3381.4,2.54933525]
[1642017257384,1.12297116,3381.5,3381.4,2.84933525]
[1642017257786,1.12297116,3381.5,3381.4,0.31088423]
[1642017258392,1.12297116,3381.5,3381.4,0.01088423]
[1642017258791,1.42297116,3381.5,3381.4,0.01088423]
[1642017259792,1.12297116,3381.5,3381.4,0.01088423]
[1642017260392,0.1182,3382.0,3381.4,0.01088423]
[1642017260662,0.1182,3382.3,3381.4,0.01088423]
[1642017260852,0.7392338,3382.0,3381.5,0.00511581]
[1642017261049,0.7392,3381.9,3381.5,0.00511581]
[1642017261256,0.7392,3381.9,3381.6,0.0052]
[1642017261647,1.49597032,3381.8,3381.7,0.00397896]
[1642017262047,2.23524032,3381.8,3381.7,0.00397896]
[1642017262650,3.27458222,3381.8,3381.7,0.00397896]
[1642017263650,2.21779,3381.9,3381.7,0.00397896]
[1642017263651,0.7392,3381.9,3381.7,0.00397896]
[1642017264151,0.7392,3381.9,3381.8,0.0052]
[1642017264590,6.98554969,3381.9,3381.8,0.00861054]
[1642017264789,7.10374969,3381.9,3381.8,0.00861054]
[1642017265588,7.84297969,3381.9,3381.8,0.00861054]
[1642017266092,9.33110086,3381.9,3381.8,0.00861054]
[1642017267293,28.16997086,3381.9,3381.8,0.00861054]
[1642017270348,28.16997086,3381.9,3380.3,0.1182]
[1642017270349,6.7,3381.8,3380.3,0.1182]
[1642017270549,0.73968,3380.8,3379.9,0.1183]
[1642017270746,18.83935,3381.0,3379.8,3.84153921]
[1642017270747,0.1183,3380.7,3380.4,0.00795793]
[1642017270945,0.3,3380.8,3380.4,0.00795793]
[1642017271144,0.3,3380.8,3379.9,0.12910004]
[1642017271349,2.77662189,3380.7,3380.0,0.01023162]
[1642017271547,1.56296812,3380.7,3380.0,2.54954771]
[1642017271751,2.30254812,3380.7,3380.0,2.58837785]
[1642017271985,19.66254812,3380.7,3380.1,0.0096632]
[1642017272188,0.73959,3380.6,3380.1,0.0096632]
[1642017272390,3.78177812,3380.7,3380.1,0.0096632]
[1642017272391,0.3,3380.5,3380.1,0.0096632]
[1642017272791,3.03412524,3380.6,3380.1,0.0096632]
[1642017272993,0.3,3380.6,3380.1,0.0096632]
[1642017273195,0.1183,3380.9,3380.1,0.0096632]
[1642017273392,0.8578,3381.0,3380.1,0.0096632]
[1642017273592,0.3,3380.9,3380.0,0.01023162]
[1642017273991,3.13100189,3381.0,3380.0,0.01023162]
[1642017274395,0.73956,3380.7,3380.0,0.01023162]
[1642017274593,1.33208338,3380.5,3380.0,0.01023162]
[1642017274793,1.33208338,3380.5,3380.1,0.1183]
[1642017275193,1.33208338,3380.5,3380.2,0.00909477]
[1642017275837,1.33208338,3380.5,3380.1,0.0096632]
[1642017277645,1.33208338,3380.5,3380.2,2.53911743]
[1642017277942,1.33208338,3380.5,3380.3,0.12682635]
[1642017278142,1.33208338,3380.5,3380.3,0.00852635]
[1642017278745,1.33208338,3380.5,3380.3,0.30852635]
[1642017278944,1.33208338,3380.5,3380.0,0.01023162]
[1642017279144,1.33208338,3380.5,3380.1,0.1183]
[1642017279599,1.33208338,3380.5,3380.2,0.00909477]
[1642017280200,1.33208338,3380.5,3380.3,0.1183]
[1642017280397,1.33208338,3380.5,3380.0,0.01023162]
[1642017280797,1.63208338,3380.5,3380.0,0.01023162]
[1642017281198,4.34455014,3380.5,3380.0,0.01023162]
[1642017281401,1.63208338,3380.5,3380.0,0.01023162]
[1642017281599,4.34580284,3380.5,3380.0,0.01023162]
[1642017282499,0.73962,3380.4,3380.0,0.01023162]
[1642017283335,1.63208338,3380.5,3380.0,0.01023162]
[1642017283936,1.33208338,3380.5,3380.0,0.01023162]
[1642017285141,1.33208338,3380.5,3380.1,0.73949]
[1642017285340,1.33208338,3380.5,3380.0,0.31023162]
[1642017285544,1.33208338,3380.5,3380.2,0.00909477]
[1642017285741,1.33208338,3380.5,3380.1,0.0096632]
[1642017285940,1.33208338,3380.5,3379.8,0.01136847]
[1642017286141,1.33208338,3380.5,3379.9,0.1183]
[1642017286547,0.1183,3380.9,3380.0,0.01023162]
[1642017286752,0.1183,3380.9,3380.1,0.15692075]
[1642017287025,0.1183,3380.9,3380.1,0.1183]
[1642017287224,0.1183,3380.9,3380.2,0.00909477]
[1642017287827,0.1183,3380.9,3380.8,1.52159045]
[1642017288025,0.1183,3380.9,3380.8,1.67834629]
[1642017288225,0.1183,3380.9,3380.8,1.98403052]
[1642017288426,0.1183,3380.9,3380.8,4.73403052]
[1642017289327,0.1183,3380.9,3380.8,5.47336052]
[1642017289527,0.1183,3380.9,3380.8,11.51956052]
[1642017289727,3.6394,3381.8,3380.8,11.51956052]
[1642017289926,7.24330458,3382.1,3380.9,0.1182]
[1642017290126,3.2295,3382.1,3380.9,0.12331581]
[1642017290329,3.2295,3382.1,3381.0,0.00454739]
[1642017290330,0.00113685,3382.0,3381.0,0.00454739]
[1642017290527,1.27191561,3381.6,3381.5,0.73914]
[1642017290745,1.27191561,3381.6,3381.5,0.03739853]
[1642017290946,1.27191561,3381.6,3381.5,0.00170527]
[1642017291347,1.27191561,3381.6,3381.3,0.00284212]
[1642017291748,2.01123561,3381.6,3381.2,0.00341054]
[1642017291947,2.01123561,3381.6,3381.0,0.00454739]
[1642017292147,2.01123561,3381.6,3381.1,0.00397896]
[1642017292348,2.01123561,3381.6,3381.0,0.00454739]
[1642017293248,1.27191561,3381.6,3381.0,0.00454739]
[1642017294392,1.27191561,3381.6,3381.1,1.47843]
[1642017294795,1.27191561,3381.6,3381.2,0.00341054]
[1642017297300,1.27191561,3381.6,3381.1,0.00397896]
[1642017297699,2.01125561,3381.6,3381.1,0.00397896]
[1642017297907,1.41125561,3381.6,3381.1,0.00397896]
[1642017298753,1.41125561,3381.6,3381.2,0.73928]
[1642017298754,1.27191561,3381.6,3381.2,0.73928]
[1642017298953,1.27191561,3381.6,3381.2,0.77340968]
[1642017299156,1.27191561,3381.6,3381.3,0.00284212]
[1642017300159,2.01124561,3381.6,3381.3,0.00284212]
[1642017300767,2.01124561,3381.6,3381.1,0.00397896]
[1642017301360,1.27191561,3381.6,3381.1,0.00397896]
[1642017301761,1.27191561,3381.6,3381.1,0.78119948]
[1642017301989,1.27191561,3381.6,3381.1,0.34190948]
[1642017302187,1.27191561,3381.6,3381.2,0.00341054]
[1642017302592,1.27191561,3381.6,3381.1,0.00397896]
[1642017302893,1.27191561,3381.6,3381.0,0.12274739]
[1642017303101,1.27191561,3381.6,3381.0,0.00454739]
[1642017303297,1.27191561,3381.6,3381.1,0.00397896]
[1642017303496,1.27191561,3381.6,3381.0,0.00454739]
[1642017303702,1.27191561,3381.6,3381.3,0.73924]
[1642017303998,1.27191561,3381.6,3381.4,0.00227369]
[1642017305397,1.27191561,3381.6,3381.2,0.00341054]
[1642017306268,1.27191561,3381.6,3381.1,0.3]
[1642017306467,1.27191561,3381.6,3381.2,0.00341054]
[1642017306869,1.27191561,3381.6,3381.1,0.00397896]
[1642017307070,1.27191561,3381.6,3381.0,0.00454739]
[1642017307867,0.7394,3381.4,3380.9,0.30511581]
[1642017308070,1.27191561,3381.6,3381.0,0.00454739]
[1642017309074,0.73936,3381.5,3381.0,0.00454739]
[1642017309273,1.27191561,3381.6,3381.0,0.74387739]
[1642017309798,1.27191561,3381.6,3381.1,0.00397896]
[1642017310195,1.27191561,3381.6,3381.0,0.00454739]
[1642017310397,1.27191561,3381.6,3381.1,0.73931]
[1642017310800,1.27191561,3381.6,3381.2,0.00341054]
[1642017312296,0.1182,3381.9,3381.2,0.00341054]
[1642017312500,0.00113685,3382.0,3381.3,0.73917]
[1642017312700,0.00113685,3382.0,3381.3,0.15373294]
[1642017312899,0.00113685,3382.0,3381.6,0.77599453]
[1642017313157,0.00113685,3382.0,3381.6,1.07599453]
[1642017313359,0.00113685,3382.0,3381.6,0.3]
[1642017313764,0.00113685,3382.0,3381.7,0.73917]
[1642017313959,0.00113685,3382.0,3381.7,0.7759893]
[1642017314159,0.00113685,3382.0,3381.7,1.0759893]
[1642017315363,0.00113685,3382.0,3381.7,0.3]
[1642017315561,0.00113685,3382.0,3381.5,1.81657247]
[1642017315760,0.00113685,3382.0,3381.6,0.1182]
[1642017315960,0.00113685,3382.0,3381.6,0.00113685]
[1642017316764,0.00113685,3382.0,3381.7,0.73915]
[1642017317044,0.00113685,3382.0,3381.7,1.1874271]
[1642017318540,0.00113685,3382.0,3381.7,1.15735]
[1642017318744,0.00113685,3382.0,3381.7,1.03915]
[1642017320243,1.47838,3382.3,3381.7,0.3]
[1642017320442,2.81083308,3382.3,3381.6,0.11933685]
[1642017320656,2.8136752,3382.3,3381.6,0.11933685]
[1642017321055,0.73918,3382.1,3381.6,0.11933685]
[1642017321459,0.00113685,3382.0,3381.6,0.11933685]
[1642017321660,0.00113685,3382.0,3381.6,0.00113685]
[1642017321860,1.47849,3382.1,3381.6,0.00113685]
[1642017322061,0.73921,3381.9,3381.6,0.00113685]
[1642017322261,0.73921,3381.9,3381.6,0.30113685]
[1642017322262,3.00749203,3381.8,3381.6,0.30113685]
[1642017322462,17.36,3381.7,3381.4,0.00227369]
[1642017322662,2.80102481,3381.6,3381.4,0.00227369]
[1642017323061,2.47377652,3381.2,3381.0,0.00454739]
[1642017323264,3.21320652,3381.2,3381.0,0.00454739]
[1642017324062,2.68141965,3381.1,3380.8,0.00568423]
[1642017324265,0.1183,3381.0,3380.8,0.00568423]
[1642017324507,0.85789,3381.0,3380.8,0.00568423]
[1642017324705,5.7713867,3380.9,3380.8,0.00568423]
[1642017324908,17.36,3380.8,3380.2,0.00909477]
[1642017325106,1.37745203,3380.6,3380.2,0.00909477]
[1642017325306,0.73973,3380.4,3380.2,0.00909477]
[1642017325507,3.03029024,3380.3,3380.2,0.00909477]
[1642017326207,3.03029024,3380.3,3379.7,0.01193689]
[1642017326408,0.7396932,3380.2,3379.7,0.01193689]
[1642017326604,2.67793361,3380.1,3379.5,0.01307374]
[1642017326805,0.73966,3379.9,3379.5,0.01307374]
[1642017327404,1.86304352,3379.9,3379.5,0.01307374]
[1642017327604,1.86304352,3379.9,3379.8,2.5390866]
[1642017328007,0.7397037,3380.0,3379.8,2.55045507]
[1642017328248,0.73967,3380.0,3379.8,2.55045507]
[1642017328448,0.73967,3380.0,3379.9,0.01080004]
[1642017328858,0.1183,3380.5,3379.9,0.01080004]
[1642017329456,0.1183,3380.5,3379.9,2.75892958]
[1642017329657,0.1183,3380.5,3379.9,3.0985533]
[1642017329861,0.1183,3380.5,3380.0,0.01023162]
[1642017330257,0.1183,3380.5,3380.0,2.54931822]
[1642017330457,0.1183,3380.5,3380.2,1.23403656]
[1642017330658,0.1183,3380.5,3380.3,0.85768]
[1642017330856,0.1183,3380.5,3380.3,0.86620635]
[1642017331061,0.1183,3380.5,3380.3,3.63350729]
[1642017331257,0.1183,3380.5,3380.4,5.44251285]
[1642017331457,0.1183,3380.5,3380.4,3.1683]
[1642017331760,0.1183,3380.5,3380.4,4.64704]
[1642017332809,0.1183,3380.5,3380.4,7.1861266]
[1642017333010,0.1183,3380.5,3380.4,9.8969626]